fUSD/lending_fUSD_20260510
["ID","MTS","AMOUNT","RATE_DAILY","PERIOD"]
[421987857,1778416232000,-500.0,0.00014111,2]
[421987842,1778416232000,-151.0,0.00014104,2]
[421987843,1778416232000,-151.0,0.00014104,2]
[421987841,1778416232000,-151.0,0.00014104,2]
[421987845,1778416232000,-500.0,0.00014111,2]
[421987844,1778416232000,-175.42277483,0.00014104,2]
[421987850,1778416232000,-500.0,0.00014111,2]
[421987851,1778416232000,-500.0,0.00014111,2]
[421987848,1778416232000,-500.0,0.00014111,2]
[421987852,1778416232000,-500.0,0.00014111,2]
[421987854,1778416232000,-500.0,0.00014111,2]
[421987849,1778416232000,-500.0,0.00014111,2]
[421987870,1778416234000,151.0,1.23e-06,120]
[421987869,1778416234000,151.0,1.23e-06,120]
[421987901,1778416238000,-381.09599344,0.0001401,2]
[421987895,1778416238000,-393.01468197,0.0001401,2]
[421987896,1778416238000,-135.18799344,0.0001401,2]
[421987899,1778416238000,-500.0,0.0001401,2]
[421987897,1778416238000,-364.81200656,0.0001401,2]
[421987898,1778416238000,-500.0,0.0001401,2]
[421987900,1778416238000,-500.0,0.0001401,2]
[421987912,1778416238000,-500.0,0.0001401,2]
[421987906,1778416238000,-268.45055798,0.0001401,2]
[421987903,1778416238000,-252.24442231,0.0001401,2]
[421987902,1778416238000,-118.90400656,0.0001401,2]
[421987907,1778416238000,-231.54944202,0.0001401,2]
[421987909,1778416238000,-500.0,0.0001401,2]
[421987908,1778416238000,-500.0,0.0001401,2]
[421987887,1778416238000,-500.0,0.0001401,2]
[421987904,1778416238000,-247.75557769,0.0001401,2]
[421987890,1778416238000,-500.0,0.0001401,2]
[421987889,1778416238000,-500.0,0.0001401,2]
[421987888,1778416238000,-500.0,0.0001401,2]
[421987881,1778416238000,-500.0,0.0001401,2]
[421987874,1778416238000,-350.0,0.0001401,2]
[421987878,1778416238000,-376.68387808,0.0001401,2]
[421987880,1778416238000,-500.0,0.0001401,2]
[421987876,1778416238000,-500.0,0.0001401,2]
[421987875,1778416238000,-500.0,0.0001401,2]
[421987879,1778416238000,-500.0,0.0001401,2]
[421987885,1778416238000,-500.0,0.0001401,2]
[421987883,1778416238000,-500.0,0.0001401,2]
[421987882,1778416238000,-500.0,0.0001401,2]
[421987915,1778416238000,-43.85910523,0.0001401,2]
[421987894,1778416238000,-500.0,0.0001401,2]
[421987892,1778416238000,-500.0,0.0001401,2]
[421987891,1778416238000,-500.0,0.0001401,2]
[421987886,1778416238000,-500.0,0.0001401,2]
[421987893,1778416238000,-500.0,0.0001401,2]
[421987916,1778416238000,-456.14089477,0.0001401,2]
[421987877,1778416238000,-500.0,0.0001401,2]
[421987914,1778416238000,-500.0,0.0001401,2]
[421987935,1778416238000,-5329.20112804,0.00014317,2]
[421987939,1778416238000,-5329.20112804,0.00014414,2]
[421987936,1778416238000,-196.98785889,0.00014332,2]
[421987940,1778416238000,-500.0,0.00014429,2]
[421987937,1778416238000,-1016.06358265,0.00014413,2]
[421987943,1778416238000,-155.598,0.0001443,2]
[421987944,1778416238000,-2000.0,0.0001443,2]
[421987934,1778416238000,-1016.06358265,0.00014315,2]
[421987942,1778416238000,-500.0,0.00014429,2]
[421987946,1778416238000,-2000.0,0.0001443,2]
[421987950,1778416238000,-17235.28182589,0.00014432,2]
[421987948,1778416238000,-757.56695,0.0001443,2]
[421987945,1778416238000,-2000.0,0.0001443,2]
[421987949,1778416238000,-500.0,0.00014431,2]
[421987947,1778416238000,-757.56694,0.0001443,2]
[421987910,1778416238000,-500.0,0.0001401,2]
[421987941,1778416238000,-500.0,0.00014429,2]
[421987932,1778416238000,-150.0,0.00014237,2]
[421987884,1778416238000,-500.0,0.0001401,2]
[421987933,1778416238000,-329.3,0.00014254,2]
[421987931,1778416238000,-5329.20112804,0.0001422,2]
[421987911,1778416238000,-500.0,0.0001401,2]
[421987917,1778416238000,-500.0,0.0001401,2]
[421987919,1778416238000,-500.0,0.0001401,2]
[421987921,1778416238000,-500.0,0.0001401,2]
[421987918,1778416238000,-500.0,0.0001401,2]
[421987920,1778416238000,-500.0,0.0001401,2]
[421987926,1778416238000,-642.78376423,0.00014111,2]
[421987913,1778416238000,-500.0,0.0001401,2]
[421987925,1778416238000,-500.0,0.00014111,2]
[421987922,1778416238000,-500.0,0.0001401,2]
[421987927,1778416238000,-20072.10500405,0.00014112,2]
[421987924,1778416238000,-500.0,0.00014111,2]
[421987929,1778416238000,-1016.06358265,0.0001412,2]
[421987930,1778416238000,-1016.06358265,0.00014218,2]
[421987928,1778416238000,-60077.02988609,0.00014112,2]
[421987923,1778416238000,-500.0,0.00014111,2]
[421987960,1778416240000,-632.01375694,0.00014432,2]
[421987961,1778416240000,-1084.02359828,0.00014432,2]
[421987973,1778416243000,-1336.99969195,0.00014432,2]
[421987974,1778416243000,-1627.91270304,0.00014432,2]
[421988050,1778416246000,-432.44982764,0.00014432,2]
[421988049,1778416246000,-500.0,0.00014111,2]
[421988051,1778416246000,-8639.44718079,0.00014432,2]
[421988052,1778416246000,-7085.73310505,0.00014432,2]
[421988059,1778416246000,-1702.65902138,0.00014432,2]
[421988060,1778416246000,-12062.97582292,0.00014432,2]
[421988053,1778416246000,-502.81288424,0.00014432,2]
[421988081,1778416604000,-5000.0,0.00041031,120]
[421988078,1778416604000,-7006.6188349,0.00041031,120]
[421988079,1778416604000,-3000.0,0.00041031,30]
[421988076,1778416604000,-3564.43253141,0.00041031,120]
[421988077,1778416604000,-46000.0,0.00041031,43]
[421988075,1778416604000,-846.64760068,0.00041031,120]
[421988073,1778416604000,-288.48210779,0.00041031,120]
[421988082,1778416604000,-5000.0,0.00041031,120]
[421988071,1778416604000,-2000.0,0.00041031,120]
[421988070,1778416604000,-2000.0,0.00041031,120]
[421988068,1778416604000,-3615.59,0.00041031,120]
[421988074,1778416604000,-5786.64993025,0.00041031,120]
[421988069,1778416604000,-500.0,0.00041031,120]
[421988072,1778416604000,-6368.40397611,0.00041031,120]
[421988085,1778416604000,-5000.0,0.00041031,120]
[421988083,1778416604000,-5000.0,0.00041031,120]
[421988096,1778416604000,-414.68265334,0.00041031,120]
[421988095,1778416604000,-500.0,0.00041031,120]
[421988093,1778416604000,-152.67,0.00041031,30]
[421988094,1778416604000,-1687.62,0.00041031,120]
[421988092,1778416604000,-571.64,0.00041031,30]
[421988080,1778416604000,-3000.0,0.00041031,30]
[421988091,1778416604000,-11108.48365537,0.00041031,120]
[421988089,1778416604000,-5000.0,0.00041031,120]
[421988088,1778416604000,-5000.0,0.00041031,120]
[421988087,1778416604000,-5000.0,0.00041031,120]
[421988086,1778416604000,-5000.0,0.00041031,120]
[421988090,1778416604000,-5000.0,0.00041031,120]
[421988084,1778416604000,-5000.0,0.00041031,120]
[421988097,1778416615000,2000.0,0.00041031,120]
[421988099,1778416616000,2027.40845367,0.00041031,120]
[421988098,1778416616000,2000.0,0.00041031,120]
[421988102,1778416888000,-199.69922948,0.00041032,120]
[421988104,1778416888000,-5000.0,0.00041032,120]
[421988103,1778416888000,-500.0,0.00041032,120]
[421988101,1778416888000,-500.0,0.00041032,120]
[421988105,1778416912000,2705.07461246,0.00041032,120]
[421988107,1778416913000,1121.63639402,0.00041032,120]
[421988106,1778416913000,899.41101717,0.00041032,120]
[421988108,1778416924000,16168.3,0.00041032,120]
[421988109,1778416925000,500.0,0.00041032,120]
[421988110,1778416925000,151.0,0.00041032,120]
[421988111,1778416925000,1030.0,0.00041032,120]
[421988113,1778416925000,10000.0,0.00041032,120]
[421988114,1778416925000,500.0,0.00041032,120]
[421988115,1778416925000,518.5,0.00041032,120]
[421988112,1778416925000,6888.0,0.00041032,120]
[421988116,1778416926000,1068.11,0.00041032,120]
[421988117,1778416926000,151.0,0.00041032,120]
[421988119,1778416926000,500.0,0.00041032,120]
[421988120,1778416926000,16168.3,0.00041032,120]
[421988121,1778416926000,151.0,0.00041032,120]
[421988118,1778416926000,7142.856,0.00041032,120]
[421988125,1778416927000,418.10022921,0.00041032,120]
[421988124,1778416927000,151.0,0.00041032,120]
[421988123,1778416927000,500.0,0.00041032,120]
[421988122,1778416927000,500.0,0.00041032,120]
[421988127,1778416928000,151.0,0.00041032,120]
[421988130,1778416928000,16168.3,0.00041032,120]
[421988129,1778416928000,151.0,0.00041032,120]
[421988128,1778416928000,211.61230188,0.00041032,120]
[421988126,1778416928000,500.0,0.00041032,120]
[421988131,1778416929000,500.0,0.00041032,120]
[421988133,1778416929000,152.0,0.00041032,120]
[421988134,1778416929000,151.0,0.00041032,120]
[421988132,1778416929000,500.0,0.00041032,120]
[421988139,1778416930000,152.0,0.00041032,120]
[421988138,1778416930000,500.0,0.00041032,120]
[421988137,1778416930000,151.0,0.00041032,120]
[421988136,1778416930000,500.0,0.00041032,120]
[421988135,1778416930000,152.0,0.00041032,120]
[421988144,1778416931000,1000.0,0.00041032,120]
[421988143,1778416931000,152.0,0.00041032,120]
[421988142,1778416931000,500.0,0.00041032,120]
[421988141,1778416931000,151.0,0.00041032,120]
[421988140,1778416931000,16168.3,0.00041032,120]
[421988145,1778416932000,152.0,0.00041032,120]
[421988146,1778416933000,152.0,0.00041032,120]
[421988147,1778416933000,16168.3,0.00041032,120]
[421988151,1778416935000,500.0,0.00041032,120]
[421988150,1778416935000,16168.3,0.00041032,120]
[421988149,1778416935000,151.0,0.00041032,120]
[421988148,1778416935000,500.0,0.00041032,120]
[421988154,1778416936000,151.0,0.00041032,120]
[421988153,1778416936000,500.0,0.00041032,120]
[421988152,1778416936000,151.0,0.00041032,120]
[421988155,1778416937000,500.0,0.00041032,120]
[421988156,1778416937000,151.0,0.00041032,120]
[421988158,1778416937000,151.0,0.00041032,120]
[421988157,1778416937000,500.0,0.00041032,120]
[421988165,1778416938000,500.0,0.00041032,120]
[421988164,1778416938000,156.587,0.00041032,120]
[421988163,1778416938000,151.0,0.00041032,120]
[421988162,1778416938000,10000.0,0.00041032,120]
[421988161,1778416938000,500.0,0.00041032,120]
[421988159,1778416938000,151.0,0.00041032,120]
[421988160,1778416938000,16168.3,0.00041032,120]
[421988167,1778416939000,162.380719,0.00041032,120]
[421988166,1778416939000,151.0,0.00041032,120]
[421988169,1778416939000,151.0,0.00041032,120]
[421988170,1778416939000,162.380719,0.00041032,120]
[421988168,1778416939000,500.0,0.00041032,120]
[421988173,1778416940000,151.0,0.00041032,120]
[421988172,1778416940000,16168.34,0.00041032,120]
[421988171,1778416940000,500.0,0.00041032,120]
[421988175,1778417020000,303.29231389,0.00041032,120]
[421988174,1778417020000,150.00000003,0.00041032,120]
[421988176,1778417021000,303.29231389,0.00041032,120]
[421988177,1778417022000,303.29231389,0.00041032,120]
[421988178,1778417069000,543.5419004,0.0001,2]
[421988179,1778417145000,-245.08865423,0.00013334,2]
[421988181,1778417225000,500.0,0.00041031,120]
[421988184,1778417225000,1992.05970149,0.00041031,120]
[421988183,1778417225000,1636.41639439,0.00041031,120]
[421988185,1778417225000,500.0,0.00041031,120]
[421988182,1778417225000,1030.0,0.00041031,120]
[421988188,1778417226000,500.0,0.00041031,120]
[421988187,1778417226000,1068.11,0.00041031,120]
[421988186,1778417226000,500.0,0.00041031,120]
[421988192,1778417227000,151.0,0.00041031,120]
[421988191,1778417227000,500.0,0.00041031,120]
[421988190,1778417227000,1107.63007,0.00041031,120]
[421988189,1778417227000,151.0,0.00041031,120]
[421988193,1778417228000,500.0,0.00041031,120]
[421988194,1778417228000,743.50770149,0.00041031,120]
[421988196,1778417228000,500.0,0.00041031,120]
[421988195,1778417228000,151.0,0.00041031,120]
[421988197,1778417228000,200.0,0.00041031,120]
[421988198,1778417228000,500.0,0.00041031,120]
[421988204,1778417229000,152.0,0.00041031,120]
[421988203,1778417229000,151.0,0.00041031,120]
[421988202,1778417229000,500.0,0.00041031,120]
[421988201,1778417229000,200.0,0.00041031,120]
[421988200,1778417229000,500.0,0.00041031,120]
[421988199,1778417229000,151.0,0.00041031,120]
[421988208,1778417230000,151.0,0.00041031,120]
[421988207,1778417230000,500.0,0.00041031,120]
[421988205,1778417230000,200.0,0.00041031,120]
[421988209,1778417230000,152.0,0.00041031,120]
[421988210,1778417230000,200.0,0.00041031,120]
[421988206,1778417230000,500.0,0.00041031,120]
[421988219,1778417231000,500.0,0.00041031,120]
[421988218,1778417231000,151.0,0.00041031,120]
[421988217,1778417231000,500.0,0.00041031,120]
[421988216,1778417231000,998.92,0.00041031,120]
[421988215,1778417231000,200.0,0.00041031,120]
[421988214,1778417231000,152.0,0.00041031,120]
[421988213,1778417231000,500.0,0.00041031,120]
[421988212,1778417231000,151.0,0.00041031,120]
[421988211,1778417231000,500.0,0.00041031,120]
[421988223,1778417232000,500.0,0.00041031,120]
[421988220,1778417232000,152.0,0.00041031,120]
[421988221,1778417232000,500.0,0.00041031,120]
[421988222,1778417232000,200.0,0.00041031,120]
[421988229,1778417232000,500.0,0.00041031,120]
[421988225,1778417232000,500.0,0.00041031,120]
[421988226,1778417232000,152.0,0.00041031,120]
[421988227,1778417232000,200.0,0.00041031,120]
[421988228,1778417232000,151.0,0.00041031,120]
[421988224,1778417232000,151.0,0.00041031,120]
[421988233,1778417233000,152.0,0.00041031,120]
[421988232,1778417233000,200.0,0.00041031,120]
[421988231,1778417233000,151.0,0.00041031,120]
[421988230,1778417233000,500.0,0.00041031,120]
[421988234,1778417234000,500.0,0.00041031,120]
[421988235,1778417234000,152.0,0.00041031,120]
[421988237,1778417234000,500.0,0.00041031,120]
[421988236,1778417234000,200.0,0.00041031,120]
[421988241,1778417235000,152.0,0.00041031,120]
[421988240,1778417235000,500.0,0.00041031,120]
[421988239,1778417235000,200.0,0.00041031,120]
[421988238,1778417235000,152.0,0.00041031,120]
[421988242,1778417236000,200.0,0.00041031,120]
[421988243,1778417236000,500.0,0.00041031,120]
[421988246,1778417236000,500.0,0.00041031,120]
[421988245,1778417236000,200.0,0.00041031,120]
[421988244,1778417236000,152.0,0.00041031,120]
[421988250,1778417237000,151.0,0.00041031,120]
[421988249,1778417237000,500.0,0.00041031,120]
[421988248,1778417237000,200.0,0.00041031,120]
[421988247,1778417237000,152.0,0.00041031,120]
[421988252,1778417238000,156.587,0.00041031,120]
[421988251,1778417238000,200.0,0.00041031,120]
[421988253,1778417239000,162.380719,0.00041031,120]
[421988255,1778417240000,174.61919141,0.00041031,120]
[421988254,1778417240000,168.3888056,0.00041031,120]
[421988257,1778417241000,151.0,0.00041031,120]
[421988256,1778417241000,181.08010149,0.00041031,120]
[421988258,1778417242000,181.08010149,0.00041031,120]
[421988260,1778417242000,151.0,0.00041031,120]
[421988259,1778417242000,151.0,0.00041031,120]
[421988261,1778417243000,151.0,0.00041031,120]
[421988262,1778417244000,151.0,0.00041031,120]
[421988268,1778417294000,-150.0,0.00013488,2]
[421988263,1778417294000,-1612.99,0.00013195,2]
[421988264,1778417294000,-103.81294577,0.00013334,2]
[421988265,1778417294000,-250.0,0.00013411,2]
[421988266,1778417294000,-150.0,0.00013488,2]
[421988267,1778417294000,-150.0,0.00013488,2]
[421988270,1778417294000,-150.0,0.00013488,2]
[421988269,1778417294000,-150.0,0.00013488,2]
[421988272,1778417294000,-250.0,0.00013549,2]
[421988273,1778417294000,-166.66,0.00013699,2]
[421988274,1778417294000,-200.0,0.00013699,2]
[421988275,1778417294000,-164.65,0.00013712,2]
[421988276,1778417294000,-150.0,0.00013787,2]
[421988277,1778417294000,-166.66,0.00013836,2]
[421988278,1778417294000,-298.0,0.0001391,2]
[421988271,1778417294000,-169.27,0.00013512,2]
[421988297,1778417295000,-500.0,0.0001411,2]
[421988295,1778417295000,-166.66,0.0001411,2]
[421988292,1778417295000,-422.03,0.00014,2]
[421988293,1778417295000,-250.0,0.00014,2]
[421988294,1778417295000,-150.0,0.00014087,2]
[421988291,1778417295000,-500.0,0.00014,2]
[421988290,1778417295000,-500.0,0.00014,2]
[421988289,1778417295000,-500.0,0.00014,2]
[421988285,1778417295000,-500.0,0.00014,2]
[421988287,1778417295000,-500.0,0.00014,2]
[421988286,1778417295000,-500.0,0.00014,2]
[421988283,1778417295000,-166.66,0.00013973,2]
[421988284,1778417295000,-150.0,0.00013999,2]
[421988282,1778417295000,-585.69,0.00013911,2]
[421988281,1778417295000,-4264.2298,0.00013911,2]
[421988280,1778417295000,-3515.8275,0.00013911,2]
[421988279,1778417295000,-1200.0,0.0001391,2]
[421988288,1778417295000,-500.0,0.00014,2]
[421988296,1778417295000,-500.0,0.0001411,2]
[421988305,1778417295000,-500.0,0.00014111,2]
[421988299,1778417295000,-500.0,0.0001411,2]
[421988298,1778417295000,-500.0,0.0001411,2]
[421988317,1778417295000,-429.05238357,0.00014111,2]
[421988315,1778417295000,-500.0,0.00014111,2]
[421988316,1778417295000,-500.0,0.00014111,2]
[421988313,1778417295000,-500.0,0.00014111,2]
[421988314,1778417295000,-500.0,0.00014111,2]
[421988311,1778417295000,-163.32,0.00014111,2]
[421988312,1778417295000,-500.0,0.00014111,2]
[421988309,1778417295000,-500.0,0.00014111,2]
[421988318,1778417295000,-530.11512474,0.00014111,2]
[421988308,1778417295000,-500.0,0.00014111,2]
[421988307,1778417295000,-500.0,0.00014111,2]
[421988306,1778417295000,-500.0,0.00014111,2]
[421988304,1778417295000,-500.0,0.0001411,2]
[421988303,1778417295000,-500.0,0.0001411,2]
[421988300,1778417295000,-506.67968673,0.0001411,2]
[421988302,1778417295000,-500.0,0.0001411,2]
[421988301,1778417295000,-500.0,0.0001411,2]
[421988310,1778417295000,-500.0,0.00014111,2]
[421988330,1778417296000,-974.0,0.00014157,2]
[421988329,1778417296000,-974.0,0.00014157,2]
[421988334,1778417296000,-974.0,0.00014157,2]
[421988331,1778417296000,-500.0,0.00014157,2]
[421988333,1778417296000,-500.0,0.00014157,2]
[421988327,1778417296000,-974.0,0.00014157,2]
[421988332,1778417296000,-974.0,0.00014157,2]
[421988328,1778417296000,-974.0,0.00014157,2]
[421988324,1778417296000,-974.0,0.00014157,2]
[421988325,1778417296000,-974.0,0.00014157,2]
[421988323,1778417296000,-974.0,0.00014157,2]
[421988322,1778417296000,-974.0,0.00014157,2]
[421988321,1778417296000,-974.0,0.00014157,2]
[421988335,1778417296000,-500.0,0.00014157,2]
[421988319,1778417296000,-974.0,0.00014157,2]
[421988320,1778417296000,-974.0,0.00014157,2]
[421988326,1778417296000,-974.0,0.00014157,2]
[421988336,1778417296000,-974.0,0.00014157,2]
[421988353,1778417296000,-500.0,0.00014273,2]
[421988337,1778417296000,-500.0,0.00014157,2]
[421988338,1778417296000,-974.0,0.00014157,2]
[421988356,1778417296000,-6787.1240858,0.00014295,2]
[421988354,1778417296000,-15351.9391582,0.00014295,2]
[421988351,1778417296000,-150.0,0.00014237,2]
[421988352,1778417296000,-166.66,0.00014247,2]
[421988349,1778417296000,-164.65,0.00014169,2]
[421988350,1778417296000,-150.0,0.00014237,2]
[421988348,1778417296000,-989.09998628,0.00014157,2]
[421988355,1778417296000,-13027.5241343,0.00014295,2]
[421988345,1778417296000,-974.0,0.00014157,2]
[421988346,1778417296000,-974.0,0.00014157,2]
[421988344,1778417296000,-974.0,0.00014157,2]
[421988343,1778417296000,-974.0,0.00014157,2]
[421988342,1778417296000,-974.0,0.00014157,2]
[421988341,1778417296000,-379.66092149,0.00014157,2]
[421988339,1778417296000,-500.0,0.00014157,2]
[421988340,1778417296000,-974.0,0.00014157,2]
[421988347,1778417296000,-974.0,0.00014157,2]
[421988371,1778417297000,-151.0,0.00014423,2]
[421988370,1778417297000,-151.0,0.00014423,2]
[421988369,1778417297000,-151.0,0.00014423,2]
[421988368,1778417297000,-151.0,0.00014423,2]
[421988367,1778417297000,-150.0,0.00014401,2]
[421988366,1778417297000,-150.0,0.00014387,2]
[421988365,1778417297000,-166.66,0.00014384,2]
[421988362,1778417297000,-2000.0,0.00014332,2]
[421988363,1778417297000,-2500.0,0.00014332,2]
[421988361,1778417297000,-850.849,0.00014332,2]
[421988359,1778417297000,-999.99,0.00014295,2]
[421988360,1778417297000,-3904.27953697,0.00014332,2]
[421988358,1778417297000,-61402.19,0.00014295,2]
[421988373,1778417297000,-151.0,0.00014423,2]
[421988364,1778417297000,-757.56695,0.0001438,2]
[421988372,1778417297000,-151.0,0.00014423,2]
[421988357,1778417297000,-9999.99,0.00014295,2]
[421988375,1778417297000,-151.0,0.00014423,2]
[421988390,1778417297000,-500.0,0.0001443,2]
[421988389,1778417297000,-500.0,0.0001443,2]
[421988387,1778417297000,-500.0,0.0001443,2]
[421988388,1778417297000,-500.0,0.0001443,2]
[421988386,1778417297000,-500.0,0.0001443,2]
[421988385,1778417297000,-500.0,0.0001443,2]
[421988384,1778417297000,-500.0,0.0001443,2]
[421988391,1778417297000,-500.0,0.0001443,2]
[421988382,1778417297000,-151.0,0.00014429,2]
[421988383,1778417297000,-500.0,0.0001443,2]
[421988377,1778417297000,-151.0,0.00014423,2]
[421988376,1778417297000,-151.0,0.00014423,2]
[421988374,1778417297000,-151.0,0.00014423,2]
[421988379,1778417297000,-151.0,0.00014423,2]
[421988381,1778417297000,-151.0,0.00014429,2]
[421988380,1778417297000,-153.71630352,0.00014423,2]
[421988378,1778417297000,-151.0,0.00014423,2]
[421988406,1778417298000,-500.0,0.0001443,2]
[421988405,1778417298000,-500.0,0.0001443,2]
[421988404,1778417298000,-500.0,0.0001443,2]
[421988403,1778417298000,-500.0,0.0001443,2]
[421988402,1778417298000,-500.0,0.0001443,2]
[421988400,1778417298000,-500.0,0.0001443,2]
[421988401,1778417298000,-500.0,0.0001443,2]
[421988398,1778417298000,-500.0,0.0001443,2]
[421988397,1778417298000,-500.0,0.0001443,2]
[421988395,1778417298000,-603.81863325,0.0001443,2]
[421988393,1778417298000,-500.0,0.0001443,2]
[421988394,1778417298000,-500.0,0.0001443,2]
[421988392,1778417298000,-500.0,0.0001443,2]
[421988407,1778417298000,-500.0,0.0001443,2]
[421988399,1778417298000,-500.0,0.0001443,2]
[421988396,1778417298000,-500.0,0.0001443,2]
[421988408,1778417298000,-500.0,0.0001443,2]
[421988410,1778417298000,-500.0,0.0001443,2]
[421988409,1778417298000,-500.0,0.0001443,2]
[421988424,1778417298000,-500.0,0.00014431,2]
[421988425,1778417298000,-500.0,0.00014431,2]
[421988423,1778417298000,-500.0,0.00014431,2]
[421988422,1778417298000,-500.0,0.00014431,2]
[421988420,1778417298000,-500.0,0.00014431,2]
[421988419,1778417298000,-610.52680529,0.0001443,2]
[421988421,1778417298000,-500.0,0.00014431,2]
[421988416,1778417298000,-500.0,0.0001443,2]
[421988417,1778417298000,-500.0,0.0001443,2]
[421988415,1778417298000,-500.0,0.0001443,2]
[421988413,1778417298000,-500.0,0.0001443,2]
[421988414,1778417298000,-500.0,0.0001443,2]
[421988412,1778417298000,-500.0,0.0001443,2]
[421988411,1778417298000,-500.0,0.0001443,2]
[421988418,1778417298000,-500.0,0.0001443,2]
[421988435,1778417299000,-200.0,0.00014432,2]
[421988439,1778417299000,-151.0,0.00014432,2]
[421988441,1778417299000,-151.0,0.00014432,2]
[421988440,1778417299000,-151.0,0.00014432,2]
[421988438,1778417299000,-151.0,0.00014432,2]
[421988437,1778417299000,-151.0,0.00014432,2]
[421988436,1778417299000,-151.0,0.00014432,2]
[421988434,1778417299000,-3325.9672785,0.00014432,2]
[421988426,1778417299000,-500.0,0.00014431,2]
[421988432,1778417299000,-500.0,0.00014431,2]
[421988431,1778417299000,-500.0,0.00014431,2]
[421988430,1778417299000,-500.0,0.00014431,2]
[421988429,1778417299000,-500.0,0.00014431,2]
[421988428,1778417299000,-500.0,0.00014431,2]
[421988427,1778417299000,-500.0,0.00014431,2]
[421988442,1778417299000,-151.0,0.00014432,2]
[421988433,1778417299000,-172996.1190366,0.00014432,2]
[421988444,1778417299000,-151.0,0.00014432,2]
[421988461,1778417299000,-500.0,0.00014478,2]
[421988445,1778417299000,-200.0,0.00014455,2]
[421988462,1778417299000,-500.0,0.00014478,2]
[421988460,1778417299000,-500.0,0.00014478,2]
[421988459,1778417299000,-379.76289057,0.00014473,2]
[421988463,1778417299000,-152.0,0.00014481,2]
[421988458,1778417299000,-501.72098573,0.00014473,2]
[421988457,1778417299000,-500.0,0.00014473,2]
[421988456,1778417299000,-500.0,0.00014473,2]
[421988455,1778417299000,-500.0,0.00014473,2]
[421988443,1778417299000,-151.0,0.00014432,2]
[421988454,1778417299000,-383.03264827,0.00014473,2]
[421988453,1778417299000,-501.10146709,0.00014473,2]
[421988451,1778417299000,-500.0,0.00014473,2]
[421988449,1778417299000,-508.10149998,0.00014473,2]
[421988447,1778417299000,-320.0,0.00014466,3]
[421988450,1778417299000,-578.26741424,0.00014473,2]
[421988448,1778417299000,-500.0,0.00014473,2]
[421988446,1778417299000,-152.0,0.00014456,2]
[421988452,1778417299000,-501.38522681,0.00014473,2]
[421988476,1778417300000,-300.0,0.00014667,2]
[421988477,1778417300000,-250.0,0.00014667,2]
[421988481,1778417300000,-500.0,0.00014705,2]
[421988478,1778417300000,-150.0,0.00014687,2]
[421988479,1778417300000,-6177.65183422,0.000147,2]
[421988475,1778417300000,-164.65,0.00014626,2]